fUSD/lending_fUSD_20250511
["ID","MTS","AMOUNT","RATE_DAILY","PERIOD"]
[360764856,1746993981952,401.900164,0.00014153,2]
[360764857,1746993996763,-79.63743965,0.00014224,2]
[360764858,1746993996786,-83.38078346,0.00014226,2]
[360764860,1746994003829,250.0,0.00013994,2]
[360764861,1746994011033,-93.24921654,0.00014226,2]
[360764924,1746994170336,684.88,0.00013962,2]
[360764930,1746994232943,-559.17710427,0.00014639,2]
[360764931,1746994232952,-150.0,0.00014885,2]
[360764932,1746994232962,-300.0,0.00014885,2]
[360764933,1746994232971,-1200.0,0.00014885,2]
[360764934,1746994232981,-300.0,0.00014885,2]
[360764935,1746994232990,-500.0,0.00014886,2]
[360764936,1746994233000,-287.49868233,0.00014886,2]
[360764937,1746994233012,-212.50131767,0.00014886,2]
[360764938,1746994233022,-217.31354724,0.00014886,2]
[360764939,1746994233057,-282.68645276,0.00014886,2]
[360764940,1746994233067,-628.41364818,0.00014886,2]
[360764941,1746994233077,-161.10255393,0.00014886,2]
[360764942,1746994233086,-500.0,0.00014886,2]
[360764943,1746994233095,-500.0,0.00014886,2]
[360764944,1746994233104,-500.0,0.00014886,2]
[360764945,1746994233114,-500.0,0.00014886,2]
[360764946,1746994233123,-500.0,0.00014886,2]
[360764947,1746994233133,-500.0,0.00014886,2]
[360764948,1746994233143,-500.0,0.00014886,2]
[360764949,1746994233153,-1000.0,0.00014888,2]
[360764950,1746994233162,-726.56814167,0.00014888,2]
[360764951,1746994233172,-1000.0,0.00014889,2]
[360764952,1746994233182,-726.56814159,0.00014889,2]
[360764953,1746994233192,-726.56814159,0.00014891,2]
[360764954,1746994233201,-726.56814159,0.00014892,2]
[360764955,1746994233211,-726.56814159,0.00014893,2]
[360764956,1746994233220,-726.56814159,0.00014895,2]
[360764957,1746994233229,-726.56814159,0.00014896,2]
[360764958,1746994233239,-726.56814159,0.00014897,2]
[360764959,1746994233248,-726.56814159,0.00014899,2]
[360764960,1746994233257,-855.4888,0.000149,2]
[360764961,1746994233267,-179.16717079,0.000149,2]
[360764962,1746994233276,-726.56814159,0.000149,2]
[360764963,1746994233286,-505.51645346,0.000149,2]
[360764964,1746994233297,-7485.17866577,0.000149,2]
[360764965,1746994233306,-377.83361212,0.000149,2]
[360764966,1746994233316,-175.8178473,0.00014924,2]
[360764967,1746994233325,-501.91737302,0.00014973,2]
[360764968,1746994233335,-500.0,0.00014973,2]
[360764969,1746994233345,-500.0,0.00014973,2]
[360764970,1746994233355,-502.27405274,0.00014973,2]
[360764971,1746994233364,-500.0,0.00014973,2]
[360764972,1746994233375,-508.51447964,0.00014973,2]
[360764973,1746994233384,-500.64623888,0.00014973,2]
[360764974,1746994233394,-453.1549407,0.00014973,2]
[360764975,1746994233403,-169.65279822,0.00014973,2]
[360764976,1746994233412,-207.4,0.00014979,2]
[360764977,1746994233422,-500.0,0.00014987,2]
[360764978,1746994233432,-500.0,0.00014987,2]
[360764979,1746994233443,-500.0,0.00014987,2]
[360764980,1746994233454,-2212.005,0.00014988,2]
[360764981,1746994233464,-950.1233291,0.00014988,2]
[360764982,1746994233474,-682.0655196,0.00014988,2]
[360764983,1746994233484,-29234.5581511,0.00014988,2]
[360764984,1746994233494,-5780.98538823,0.00014988,2]
[360764988,1746994238309,-563.74210603,0.00014987,2]
[360764989,1746994238319,-500.0,0.00014987,2]
[360764990,1746994238328,-500.0,0.00014987,2]
[360764991,1746994238339,-500.0,0.00014987,2]
[360764992,1746994238348,-95404.56461167,0.00014988,2]
[360764993,1746994238357,-154.0,0.00014988,2]
[360764994,1746994238366,-162.4,0.0001499,2]
[360764995,1746994238378,-162.4,0.0001499,2]
[360764996,1746994238390,-151.0,0.00014991,2]
[360764997,1746994238399,-668.65185757,0.00014991,2]
[360764998,1746994238408,-798.0,0.00014999,2]
[360764999,1746994238418,-627.0,0.00014999,2]
[360765000,1746994238427,-300.0,0.00014999,2]
[360765001,1746994238436,-321.08744799,0.00014999,2]
[360765002,1746994238450,-300.0,0.00014999,2]
[360765003,1746994238460,-300.0,0.00014999,2]
[360765004,1746994238470,-324.57324155,0.00014999,2]
[360765005,1746994238480,-300.0,0.00014999,2]
[360765006,1746994238490,-300.0,0.00014999,2]
[360765007,1746994238500,-397.31011478,0.00014999,2]
[360765008,1746994238510,-115889.39729813,0.00014999,2]
[360765034,1746994238968,-669.45990628,0.00014999,2]
[360765035,1746994238999,-1881.79748,0.00014999,2]
[360765047,1746994241940,-727.1486,0.00014797,2]
[360765048,1746994241950,-9736.3487,0.00014888,2]
[360765049,1746994241960,-973820.28462699,0.00014999,2]
[360765050,1746994241969,-4076418.6704473,0.00015,2]
[360765051,1746994241979,-200335.46473038,0.00015,2]
[360765052,1746994241988,-414266.84236587,0.00015,2]
[360765053,1746994242026,-841.44876294,0.00015,2]
[360765093,1746994244210,-3935.1884,0.00015,2]
[360765102,1746994244288,-938.58,0.00015,2]
[360765308,1746994246467,-1188.572415,0.00015,2]
[360765350,1746994246869,-47491.2488,0.00015,2]
[360765378,1746994247125,-10430.0,0.00015,2]
[360765750,1746994907959,1000.0,0.00013994,2]
[360765751,1746994971559,1000.0,0.00013699,2]
[360765752,1746995004655,281.39,0.00013977,2]
[360765753,1746995081923,1977.25,0.00012043,2]
[360765754,1746995087223,1125.6,0.00013951,2]
[360765755,1746995125549,168.35,0.00011159,2]
[360765756,1746995141941,250.0,0.00013948,2]
[360765779,1746995243820,1052.09,0.00013939,2]
[360765780,1746995301605,1626.84,0.00014051,2]
[360765878,1746995432137,-151.0,0.00014288,2]
[360765879,1746995432146,-207.4,0.00014288,2]
[360765880,1746995432156,-250.0,0.00014294,2]
[360765881,1746995432165,-300.0,0.00014295,2]
[360765882,1746995432175,-1200.0,0.00014295,2]
[360765884,1746995432184,-300.0,0.00014295,2]
[360765886,1746995432193,-23900.0,0.00014296,2]
[360765888,1746995432203,-1977.25,0.00014307,2]
[360765889,1746995432212,-1481.62917772,0.00014692,2]
[360765890,1746995432222,-200.0,0.0001488,2]
[360765891,1746995432232,-405.1003,0.00014888,2]
[360765892,1746995432242,-381.7058,0.00014888,2]
[360765893,1746995432252,-1683.0493,0.00014888,2]
[360765894,1746995432264,-1456.67389275,0.00014888,2]
[360765895,1746995432274,-1456.67389268,0.00014889,2]
[360765896,1746995432283,-1456.67389268,0.00014891,2]
[360765897,1746995432293,-1456.67389268,0.00014892,2]
[360765898,1746995432303,-1456.67389268,0.00014893,2]
[360765899,1746995432312,-1456.67389268,0.00014895,2]
[360765900,1746995432456,-1456.67389268,0.00014896,2]
[360765901,1746995432510,-1456.67389268,0.00014897,2]
[360765902,1746995432519,-1456.67389268,0.00014899,2]
[360765903,1746995432529,-150.0,0.00014899,2]
[360765904,1746995432539,-211.7625,0.000149,2]
[360765905,1746995432549,-22067.71778066,0.000149,2]
[360765906,1746995432558,-194.77304099,0.000149,2]
[360765907,1746995432568,-722.93213571,0.000149,2]
[360765908,1746995432577,-173.09346881,0.000149,2]
[360765909,1746995432586,-175.8178473,0.00014924,2]
[360765910,1746995432595,-502.01928571,0.00014973,2]
[360765911,1746995432605,-290.83024007,0.00014978,2]
[360765912,1746995432614,-10763.31578456,0.00014979,2]
[360765913,1746995432624,-1769.604,0.00014987,2]
[360765914,1746995432634,-163.496,0.00014987,2]
[360765915,1746995432647,-19256.88880348,0.00014988,2]
[360765916,1746995432854,-9756.61906343,0.00014988,2]
[360765929,1746995438042,-500.0,0.00014292,2]
[360765930,1746995438052,-500.0,0.00014292,2]
[360765931,1746995438062,-543.21620471,0.00014292,2]
[360765932,1746995438072,-8891.78379529,0.000149,2]
[360765937,1746995439725,-633.03720533,0.000149,2]
[360765938,1746995439738,-3121.8680359,0.000149,2]
[360765939,1746995439750,-394.20200095,0.000149,2]
[360765940,1746995439761,-12014.77284846,0.000149,2]
[360765941,1746995439940,-300.54575893,0.000149,2]
[360765942,1746995439996,-1184.38135949,0.000149,2]
[360765943,1746995440157,-10459.08672348,0.000149,2]
[360765947,1746995442626,-500.0,0.000149,2]
[360765948,1746995442638,-10779.16006692,0.000149,2]
[360765949,1746995442652,-665.159998,0.000149,2]
[360765950,1746995442664,-892.0,0.000149,2]
[360765951,1746995442891,-675.6,0.000149,2]
[360765956,1746995446046,-800.0,0.000149,2]
[360765972,1746995548082,1172.44,0.00028,120]
[360765973,1746995767903,23900.0,0.00014078,2]
[360765974,1746995768598,-200.0,0.00014209,2]
[360765975,1746996062059,3066.56,0.00013949,2]
[360765976,1746996071370,1000.0,0.00013941,2]
[360765977,1746996086690,2014.3,0.00012023,2]
[360765978,1746996112850,1000.0,0.00013699,2]
[360765979,1746996245463,182.76878948,0.00014186,2]
[360765980,1746996307710,758.32,0.00013894,2]
[360765985,1746996393746,168.35,0.00011173,2]
[360765992,1746996476219,250.0,0.0001391,2]
[360765993,1746996534767,7932.46257867,0.0002799,120]
[360766071,1746996554691,200.0,0.00013892,2]
[360766080,1746996603018,182.76878947,0.00014183,2]
[360766087,1746996629696,285.68201182,0.00014132,2]
[360766088,1746996632106,-300.0,0.00014282,2]
[360766089,1746996632116,-629.25693706,0.00014282,2]
[360766090,1746996632186,-415.87469936,0.00014282,2]
[360766093,1746996632198,-154.86836358,0.00014282,2]
[360766095,1746996632208,-300.0,0.00014282,2]
[360766097,1746996632218,-150.0,0.00014283,2]
[360766099,1746996632229,-170.01396221,0.00014283,2]
[360766101,1746996632238,-500.0,0.00014283,2]
[360766103,1746996632248,-500.0,0.00014283,2]
[360766105,1746996632257,-25.11767421,0.00014283,2]
[360766107,1746996632270,-474.88232579,0.00014283,2]
[360766109,1746996632280,-500.0,0.00014283,2]
[360766111,1746996632289,-500.0,0.00014283,2]
[360766113,1746996632299,-351.09246535,0.00014283,2]
[360766115,1746996632311,-148.90753465,0.00014283,2]
[360766117,1746996632320,-234.2212236,0.00014283,2]
[360766125,1746996632395,-265.7787764,0.00014283,2]
[360766127,1746996632405,-500.0,0.00014283,2]
[360766128,1746996632415,-500.0,0.00014283,2]
[360766129,1746996632425,-500.0,0.00014283,2]
[360766130,1746996632435,-500.0,0.00014283,2]
[360766131,1746996632445,-270.41084239,0.00014283,2]
[360766132,1746996632454,-500.0,0.00014283,2]
[360766133,1746996632464,-500.0,0.00014283,2]
[360766134,1746996632474,-500.0,0.00014283,2]
[360766135,1746996632484,-500.0,0.00014283,2]
[360766136,1746996632493,-500.0,0.00014283,2]
[360766137,1746996632502,-500.0,0.00014283,2]
[360766138,1746996632512,-500.0,0.00014283,2]
[360766139,1746996632521,-500.0,0.00014283,2]
[360766141,1746996632531,-500.0,0.00014283,2]
[360766143,1746996632542,-500.0,0.00014283,2]
[360766144,1746996632552,-500.0,0.00014283,2]
[360766145,1746996632562,-500.0,0.00014283,2]
[360766146,1746996632572,-500.0,0.00014283,2]
[360766147,1746996632582,-650.0,0.00014283,2]
[360766148,1746996632591,-500.0,0.00014283,2]
[360766149,1746996632600,-500.0,0.00014283,2]
[360766150,1746996632609,-500.0,0.00014283,2]
[360766151,1746996632619,-250.0,0.00014284,2]
[360766152,1746996632628,-2014.3,0.00014287,2]
[360766153,1746996632638,-173.4,0.00014366,2]
[360766154,1746996632647,-389.93793726,0.000147,2]
[360766155,1746996632657,-917.3752297,0.000148,2]
[360766156,1746996632667,-192.81044576,0.000148,2]
[360766157,1746996632677,-1554.0,0.000148,2]
[360766158,1746996632687,-917.37522968,0.00014811,2]
[360766159,1746996632697,-192.81044573,0.00014811,2]
[360766160,1746996632707,-917.37522968,0.00014822,2]
[360766161,1746996632717,-192.81044573,0.00014822,2]
[360766162,1746996632727,-917.37522968,0.00014833,2]
[360766163,1746996632736,-192.81044573,0.00014833,2]
[360766164,1746996632745,-917.37522968,0.00014844,2]
[360766165,1746996632755,-192.81044573,0.00014844,2]
[360766166,1746996632764,-917.37522968,0.00014856,2]
[360766167,1746996632773,-192.81044573,0.00014856,2]
[360766168,1746996632783,-917.37522968,0.00014867,2]
[360766169,1746996632792,-192.81044573,0.00014867,2]
[360766170,1746996632801,-917.37522968,0.00014878,2]
[360766171,1746996632812,-192.81044573,0.00014878,2]
[360766172,1746996632822,-207.4,0.00014878,2]
[360766173,1746996632831,-2000.0,0.0001488,2]
[360766174,1746996632841,-200.0,0.0001488,2]
[360766175,1746996632850,-5028.5798,0.00014888,2]
[360766176,1746996632860,-179.5630715,0.00014888,2]
[360766177,1746996632869,-917.37522968,0.00014889,2]
[360766178,1746996632879,-192.81044573,0.00014889,2]
[360766179,1746996632888,-3982.06,0.0001489,2]
[360766180,1746996632898,-151.0,0.00014891,2]
[360766181,1746996632907,-668.65185757,0.00014891,2]
[360766182,1746996632917,-155.0,0.00014891,2]
[360766183,1746996632926,-179.56307149,0.00014894,2]
[360766184,1746996632935,-500.0,0.00014899,2]
[360766185,1746996632945,-500.0,0.00014899,2]
[360766186,1746996632954,-463.74210603,0.00014899,2]
[360766187,1746996632963,-500.0,0.00014899,2]
[360766188,1746996632973,-500.0,0.00014899,2]
[360766189,1746996632982,-500.0,0.00014899,2]
[360766190,1746996632991,-2100.708,0.00014899,2]
[360766191,1746996633001,-163.496,0.00014899,2]
[360766192,1746996633010,-397.31011478,0.00014899,2]
[360766193,1746996633019,-24138.75964215,0.000149,2]
[360766194,1746996633065,-12906.20841283,0.000149,2]
[360766195,1746996633105,-27999.30164108,0.000149,2]
[360766196,1746996633117,-430.25086577,0.000149,2]
[360766197,1746996633128,-1231.85132041,0.000149,2]
[360766198,1746996633139,-578.59140228,0.000149,2]
[360766199,1746996633168,-556.26072989,0.000149,2]
[360766200,1746996633179,-4297.54566169,0.000149,2]
[360766201,1746996633190,-5631.21966337,0.000149,2]
[360766202,1746996633201,-4906.28337191,0.000149,2]
[360766214,1746996638042,-5287.76729587,0.000149,2]
[360766215,1746996638052,-707.48916063,0.000149,2]
[360766216,1746996638062,-320.14396387,0.000149,2]
[360766217,1746996638073,-917.37522968,0.000149,2]
[360766218,1746996638083,-192.81044573,0.000149,2]
[360766219,1746996638092,-174.80030122,0.000149,2]
[360766220,1746996638102,-179.56307149,0.000149,2]
[360766221,1746996638111,-805.69383743,0.000149,2]
[360766222,1746996638120,-1000.0,0.000149,2]
[360766223,1746996638130,-173.4,0.00014959,2]
[360766224,1746996638139,-330.62981563,0.00014973,2]
[360766225,1746996638149,-491.84624663,0.00014973,2]
[360766227,1746996638159,-500.0,0.00014973,2]
[360766229,1746996638168,-500.0,0.00014973,2]
[360766231,1746996638178,-400.0637195,0.00014973,2]
[360766233,1746996638188,-500.0,0.00014973,2]
[360766235,1746996638199,-500.0,0.00014973,2]
[360766238,1746996638210,-3982.06,0.00014978,2]
[360766239,1746996638219,-550657.48232057,0.00014987,2]
[360766245,1746996638268,-8431.1612707,0.00014987,2]
[360766247,1746996638280,-395.69622785,0.00014987,2]
[360766250,1746996638295,-28935.22710385,0.00014987,2]
[360766254,1746996638321,-31309.95652102,0.00014987,2]
[360766256,1746996638330,-3097.602623,0.00014988,2]
[360766258,1746996638340,-51470.9861485,0.00014988,2]
[360766260,1746996638350,-11396.0383417,0.00014988,2]
[360766262,1746996638359,-830.58675385,0.00014988,2]
[360766264,1746996638369,-109921.7195915,0.00014988,2]
[360766266,1746996638379,-5150.9215228,0.0001499,2]
[360766268,1746996638388,-929.0,0.00014998,2]
[360766270,1746996638398,-1304.0,0.00014998,2]
[360766272,1746996638412,-1144.0,0.00014998,2]
[360766275,1746996638422,-5936.0,0.00014998,2]
[360766277,1746996638432,-627.0,0.00014998,2]
[360766279,1746996638441,-798.0,0.00014998,2]
[360766281,1746996638450,-583.0,0.00014998,2]
[360766283,1746996638460,-1248.0,0.00014998,2]
[360766285,1746996638469,-918.0,0.00014998,2]
[360766287,1746996638479,-1455.0,0.00014998,2]
[360766289,1746996638488,-552.0,0.00014998,2]
[360766291,1746996638498,-150.0,0.00014998,2]
[360766293,1746996638507,-242.0,0.00014998,2]
[360766295,1746996638516,-6793.0,0.00014998,2]
[360766297,1746996638526,-150.176,0.00014998,2]
[360766299,1746996638535,-150.0,0.00014998,2]
[360766301,1746996638545,-4026.0,0.00014998,2]
[360766303,1746996638554,-157.352,0.00014998,2]
[360766305,1746996638563,-154.0,0.00014998,2]
[360766307,1746996638572,-835.0,0.00014998,2]
[360766309,1746996638582,-879.0,0.00014998,2]
[360766311,1746996638591,-300.0,0.00014999,2]
[360766312,1746996638600,-300.0,0.00014999,2]
[360766313,1746996638609,-300.0,0.00014999,2]
[360766314,1746996638618,-126424.57724302,0.00015,2]
[360766315,1746996638630,-534.82997,0.00015,2]
[360766316,1746996638676,-26536.75640405,0.00015,2]
[360766317,1746996638687,-349.03655998,0.00015,2]
[360766318,1746996638699,-1499.8,0.00015,2]
[360766319,1746996638722,-24944.34423512,0.00015,2]
[360766320,1746996638752,-519.750011,0.00015,2]
[360766321,1746996638763,-1068.21900387,0.00015,2]
[360766329,1746996639891,-552.84548705,0.000148,2]
[360766333,1746996639915,-1947.15451295,0.000148,2]
[360766334,1746996639924,-5304.79980218,0.00015,2]
[360766337,1746996639935,-11104.40000003,0.00015,2]
[360766339,1746996639947,-18577.6464,0.00015,2]
[360766341,1746996639958,-496.68627401,0.00015,2]
[360766347,1746996640007,-11560.39006071,0.00015,2]
[360766353,1746996640049,-695.072,0.00015,2]
[360766355,1746996640061,-2200.0,0.00015,2]
[360766369,1746996640266,-8064.3617255,0.00015,2]
[360766379,1746996643089,-5914.708596,0.00015,2]
[360766381,1746996643154,-557.084731,0.00015,2]
[360766396,1746996889165,152.0,0.00014006,2]
[360766397,1746996967047,23900.0,0.00013939,2]
[360766398,1746997056244,502.63,0.000177,14]
[360766399,1746997056539,290.06,0.000179,14]
[360766400,1746997114315,1875.4,0.00012004,2]
[360766403,1746997252427,1000.0,0.00013699,2]
[360766404,1746997255194,1000.0,0.00013922,2]
[360766405,1746997264010,156.8,0.00013939,2]
[360766406,1746997392626,993.34,0.00013924,2]
[360766407,1746997479659,166.79,0.00011099,2]
[360766419,1746997718311,150.0,0.00014201,2]
[360766454,1746997809699,150.0,0.00013951,2]
[360766455,1746997816727,250.0,0.00013968,2]
[360766460,1746997832119,-600.0,0.00014262,2]
[360766461,1746997832129,-1200.0,0.00014262,2]
[360766462,1746997832139,-300.0,0.00014262,2]
[360766463,1746997832148,-500.0,0.00014263,2]
[360766464,1746997832157,-500.0,0.00014263,2]
[360766465,1746997832167,-500.0,0.00014263,2]
[360766466,1746997832176,-500.0,0.00014263,2]
[360766467,1746997832185,-336.06303229,0.00014263,2]
[360766468,1746997832208,-163.93696771,0.00014263,2]
[360766469,1746997832217,-153.57092824,0.00014263,2]
[360766470,1746997832226,-150.0,0.00014264,2]
[360766471,1746997832235,-46.23331672,0.00014264,2]
[360766472,1746997832248,-10191.3053151,0.00014264,2]
[360766473,1746997832259,-5043.40180296,0.00014264,2]
[360766474,1746997832270,-567.02785561,0.00014264,2]
[360766475,1746997832281,-1419.41840479,0.00014264,2]
[360766476,1746997832292,-896.14601445,0.00014264,2]
[360766477,1746997832316,-398.05286501,0.00014264,2]
[360766478,1746997832327,-5933.588277,0.00014264,2]
[360766479,1746997832337,-1047.85311258,0.00014264,2]
[360766490,1746997837963,-32336.49605018,0.00014264,2]
[360766491,1746997837973,-250.0,0.00014265,2]
[360766492,1746997837982,-500.0,0.00014265,2]
[360766493,1746997837991,-500.0,0.00014265,2]
[360766494,1746997838000,-500.0,0.00014265,2]
[360766495,1746997838010,-500.0,0.00014265,2]
[360766496,1746997838019,-500.0,0.00014265,2]
[360766497,1746997838028,-500.0,0.00014265,2]
[360766498,1746997838037,-500.0,0.00014265,2]
[360766499,1746997838046,-500.0,0.00014265,2]
[360766500,1746997838056,-500.0,0.00014265,2]
[360766501,1746997838065,-500.0,0.00014265,2]
[360766502,1746997838075,-447.49433679,0.00014265,2]
[360766503,1746997838086,-500.0,0.00014265,2]
[360766504,1746997838097,-500.0,0.00014265,2]
[360766505,1746997838114,-500.0,0.00014265,2]
[360766506,1746997838123,-500.0,0.00014265,2]
[360766507,1746997838134,-500.0,0.00014265,2]
[360766508,1746997838144,-500.0,0.00014265,2]
[360766509,1746997838154,-500.0,0.00014265,2]
[360766510,1746997838164,-500.0,0.00014265,2]
[360766511,1746997838175,-500.0,0.00014265,2]
[360766512,1746997838186,-500.0,0.00014265,2]
[360766513,1746997838196,-500.0,0.00014265,2]
[360766514,1746997838207,-500.0,0.00014265,2]
[360766515,1746997838216,-500.0,0.00014265,2]
[360766516,1746997838226,-500.0,0.00014265,2]
[360766517,1746997838235,-500.0,0.00014265,2]
[360766518,1746997838244,-300.0,0.00014265,2]
[360766519,1746997838254,-1875.4,0.00014268,2]
[360766520,1746997838263,-207.4,0.00014273,2]
[360766521,1746997838272,-1716.0,0.000147,2]
[360766522,1746997838282,-414.9886,0.00014777,2]
[360766523,1746997838292,-150.99,0.00014777,2]
[360766524,1746997838301,-105961.8949,0.00014777,2]
[360766525,1746997838313,-500.0,0.00014795,2]
[360766526,1746997838322,-172.38584227,0.00014795,2]
[360766527,1746997838332,-500.0,0.00014795,2]
[360766528,1746997838341,-500.0,0.00014795,2]
[360766529,1746997838351,-402.23363195,0.00014795,2]
[360766530,1746997838360,-299.99,0.00014795,2]
[360766531,1746997838369,-901.18,0.00014795,2]
[360766532,1746997838378,-9999.99,0.00014795,2]
[360766533,1746997838388,-9999.99,0.00014795,2]
[360766534,1746997838399,-650.23882842,0.000148,2]
[360766535,1746997838408,-1000.0,0.000148,2]
[360766536,1746997838417,-156.8,0.0001481,2]
[360766537,1746997838427,-91610.6879,0.00014877,2]
[360766538,1746997838436,-2064.1874785,0.0001489,2]
[360766539,1746997838445,-627.0,0.00014893,2]
[360766540,1746997838455,-798.0,0.00014893,2]
[360766541,1746997838464,-552.0,0.00014893,2]
[360766542,1746997838473,-1455.0,0.00014893,2]
[360766543,1746997838482,-918.0,0.00014893,2]
[360766544,1746997838492,-583.0,0.00014893,2]
[360766546,1746997838502,-1260.629,0.00014893,2]
[360766547,1746997838511,-5938.0,0.00014893,2]
[360766548,1746997838520,-1145.0,0.00014893,2]
[360766549,1746997838530,-2064.18747851,0.000149,2]
[360766550,1746997838539,-971.2302,0.000149,2]
[360766551,1746997838550,-1677.6461,0.000149,2]
[360766552,1746997838561,-2312.634,0.000149,2]
[360766553,1746997838570,-216.22042772,0.000149,2]
[360766554,1746997838579,-5583.07647476,0.000149,2]
[360766555,1746997838589,-185.75555737,0.000149,2]
[360766556,1746997838598,-6793.0,0.00014919,2]
[360766557,1746997838608,-4026.0,0.00014919,2]
[360766558,1746997838617,-835.0,0.00014919,2]
[360766559,1746997838628,-154.0,0.00014919,2]
[360766560,1746997838638,-879.0,0.00014919,2]
[360766561,1746997838647,-740.88059788,0.00014979,2]
[360766562,1746997838659,-668.65185757,0.00014981,2]
[360766563,1746997838668,-31291.0495104,0.00014989,2]
[360766564,1746997838678,-12100.2321818,0.00014989,2]
[360766565,1746997838687,-10839.37579127,0.00014989,2]
[360766566,1746997838793,-3805.83546753,0.00014989,2]
[360766567,1746997839108,-1117.7008173,0.00014989,2]
[360766568,1746997839118,-5502.34416797,0.0001499,2]
[360766569,1746997839258,-10416.4436989,0.0001499,2]
[360766573,1746997840413,-1558.35732936,0.0001499,2]
[360766574,1746997840426,-322.54179362,0.0001499,2]
[360766580,1746997842456,-15936.906792,0.0001499,2]
[360766596,1746997845594,-19295.2,0.0001499,2]
[360766597,1746997845606,-3602.0,0.0001499,2]
[360766646,1746997847275,-1178.600015,0.0001499,2]
[360766647,1746997847292,-13714.63371742,0.0001499,2]
[360766648,1746997847303,-7831.42990018,0.0001499,2]
[360766650,1746998066105,282.843849,0.00014188,2]
[360766651,1746998073551,424.59,0.00014024,2]
[360766652,1746998251368,23900.0,0.00013987,2]
[360766653,1746998265618,-159.0,0.00014258,2]
[360766654,1746998265644,-300.0,0.00014258,2]
[360766655,1746998265677,-500.0,0.00014259,2]
[360766656,1746998265711,-484.8651473,0.00014259,2]
[360766657,1746998265744,-500.0,0.00014259,2]
[360766658,1746998265776,-500.0,0.00014259,2]
[360766659,1746998265808,-500.0,0.00014259,2]
[360766660,1746998265839,-500.0,0.00014259,2]
[360766661,1746998265870,-500.0,0.00014259,2]
[360766662,1746998265902,-500.0,0.00014259,2]
[360766663,1746998265933,-500.0,0.00014259,2]
[360766664,1746998266254,-500.0,0.00014259,2]
[360766665,1746998266279,-1200.0,0.0001426,2]
[360766666,1746998266306,-300.0,0.0001426,2]
[360766667,1746998266330,-971.2302,0.00014888,2]
[360766668,1746998266354,-1677.6461,0.00014888,2]
[360766669,1746998266380,-1896.02991484,0.0001489,2]
[360766670,1746998266405,-150.0,0.00014891,2]
[360766671,1746998266431,-1896.02991476,0.00014891,2]
[360766672,1746998266458,-1896.02991476,0.00014892,2]
[360766673,1746998266486,-1896.02991476,0.00014893,2]
[360766674,1746998266512,-1896.02991476,0.00014894,2]
[360766675,1746998266539,-1896.02991476,0.00014896,2]
[360766676,1746998266565,-1896.02991476,0.00014897,2]
[360766677,1746998266591,-1896.02991476,0.00014898,2]
[360766678,1746998266616,-802.01923454,0.00014899,2]
[360766679,1746998296971,1000.0,0.00014125,2]
[360766680,1746998307875,1331.44,0.00014125,2]
[360766681,1746998370320,277.75,0.00014133,2]
[360766682,1746998402428,1850.32,0.00014032,2]
[360766683,1746998446867,1523.75,0.00013967,2]
[360766684,1746998452609,1000.0,0.00013699,2]
[360766685,1746998479407,200.0,0.00013963,2]
[360766686,1746998536397,158.53,0.00013963,2]
[360766687,1746998601390,1757.27,0.00012046,2]
[360766688,1746998639277,642.21,0.00013959,2]
[360766766,1746998970274,250.0,0.00013942,2]
[360766770,1746998990554,-180.62,0.00027397,30]
[360766771,1746998990579,-441.69,0.00027425,30]
[360766772,1746998990607,-1333.0,0.00029041,120]